fUST/lending_fUST_20251129
["ID","MTS","AMOUNT","RATE_DAILY","PERIOD"]
[395089828,1764420641644,-151.0,0.00011141,2]
[395089830,1764420641654,-226.00720925,0.00011141,2]
[395089832,1764420641663,-500.0,0.00011141,2]
[395089834,1764420641673,-530.84712245,0.00011159,2]
[395089836,1764420641682,-201.93286099,0.00011162,2]
[395089838,1764420641692,-250.0,0.000112,2]
[395089840,1764420641702,-151.0,0.000112,2]
[395089842,1764420641712,-287.75,0.00011211,2]
[395089844,1764420641721,-396.7820932,0.00011233,2]
[395089846,1764420641730,-133214.0983349,0.00011233,2]
[395089850,1764420641757,-40235.12739701,0.00011233,2]
[395089852,1764420641768,-532.5,0.00011233,2]
[395089944,1764420642613,160.0,5.9e-07,2]
[395090046,1764420643521,-1657.4682726,0.00011233,2]
[395090066,1764420643704,160.0,5.9e-07,2]
[395090273,1764420645924,-8767.27959657,0.00011233,2]
[395091723,1764420842963,262.03,1e-05,2]
[395091724,1764420843283,262.03,1e-05,2]
[395091725,1764420843597,262.03,1e-05,2]
[395091726,1764420843905,262.03,1.1e-05,2]
[395091727,1764420844222,262.03,1.1e-05,2]
[395091728,1764420844547,262.03,1.1e-05,2]
[395091729,1764420844924,262.03,1.1e-05,2]
[395091730,1764420845242,262.03,1.1e-05,2]
[395091731,1764420845570,262.03,1.2e-05,2]
[395091732,1764420845884,262.03,1.2e-05,2]
[395091733,1764420846381,262.03,1.2e-05,2]
[395091734,1764420846517,262.03,1.2e-05,2]
[395091735,1764420847124,262.03,1.089e-05,2]
[395091736,1764420847474,262.03,1.2e-05,2]
[395091737,1764420847791,262.03,1.3e-05,2]
[395091738,1764420848212,262.03,1.3e-05,2]
[395091739,1764420848542,262.03,1.3e-05,2]
[395091740,1764420848920,262.03,1.3e-05,2]
[395091741,1764420849467,262.03,1.3e-05,2]
[395091742,1764420849650,262.03,1.4e-05,2]
[395091743,1764420849983,262.03,1.4e-05,2]
[395091744,1764420850281,262.03,1.4e-05,2]
[395091745,1764420850594,262.03,1.4e-05,2]
[395091746,1764420850905,262.03,1.4e-05,2]
[395091747,1764420851285,262.03,1.5e-05,2]
[395091748,1764420851579,262.03,1.5e-05,2]
[395091749,1764420852416,262.03,1.5e-05,2]
[395091750,1764420852819,262.03,1.5e-05,2]
[395091751,1764420853131,262.03,1.6e-05,2]
[395091752,1764420853676,262.03,1.6e-05,2]
[395091753,1764420853832,262.03,1.6e-05,2]
[395091754,1764420854157,262.03,1.6e-05,2]
[395091755,1764420854484,262.03,1.6e-05,2]
[395091756,1764420854855,262.03,1.7e-05,2]
[395091757,1764420855188,262.03,1.7e-05,2]
[395091758,1764420855515,262.03,1.7e-05,2]
[395091759,1764420855835,262.03,1.7e-05,2]
[395091760,1764420856180,262.03,1.7e-05,2]
[395091761,1764420856506,262.03,1.8e-05,2]
[395091762,1764420856893,262.03,1.8e-05,2]
[395091763,1764420857207,262.03,1.8e-05,2]
[395091764,1764420857653,262.03,1.8e-05,2]
[395091765,1764420858020,262.03,1.8e-05,2]
[395091767,1764420858341,262.03,1.9e-05,2]
[395091768,1764420858743,262.03,1.9e-05,2]
[395091769,1764420859047,262.03,1.9e-05,2]
[395091770,1764420859361,262.03,1.9e-05,2]
[395091771,1764420859941,262.03,1.9e-05,2]
[395091772,1764420860078,262.03,2e-05,2]
[395091773,1764420860380,262.03,2e-05,2]
[395091774,1764420860785,262.03,2e-05,2]
[395091778,1764420892647,250.0,1.437e-05,2]
[395091789,1764421048787,300.0,8.458e-05,2]
[395091790,1764421064050,5185.26767163,8.458e-05,2]
[395091791,1764421072021,300.0,8.458e-05,2]
[395091793,1764421094348,300.0,8.458e-05,2]
[395091794,1764421116882,300.0,8.458e-05,2]
[395091796,1764421125079,1409.6934732,8.458e-05,2]
[395091797,1764421140213,300.0,8.458e-05,2]
[395091798,1764421148091,300.0,8.458e-05,2]
[395091799,1764421164430,300.0,8.458e-05,2]
[395091800,1764421173817,300.0,8.458e-05,2]
[395091802,1764421181839,300.0,8.458e-05,2]
[395091803,1764421189712,5820.64509656,8.458e-05,2]
[395091805,1764421197735,5820.64509656,8.458e-05,2]
[395091806,1764421213441,5820.64509656,8.458e-05,2]
[395091808,1764421221307,5820.64509656,8.458e-05,2]
[395091809,1764421223987,1248.06620082,8.443e-05,2]
[395091811,1764421236975,5820.64509656,8.458e-05,2]
[395091816,1764421245363,5820.64509656,8.458e-05,2]
[395091822,1764421261401,5820.64509656,8.458e-05,2]
[395091823,1764421269190,5820.64509656,8.458e-05,2]
[395091825,1764421284408,5820.64509656,8.458e-05,2]
[395091826,1764421292579,5820.64509656,8.458e-05,2]
[395091827,1764421308202,5820.64509656,8.458e-05,2]
[395091828,1764421316063,2347.51443949,8.458e-05,2]
[395091829,1764421331287,5820.64509656,8.458e-05,2]
[395091832,1764421354115,5820.64509656,8.458e-05,2]
[395091833,1764421376724,5820.64509656,8.458e-05,2]
[395091834,1764421399356,5820.64509656,8.458e-05,2]
[395091837,1764421422238,5820.64509656,8.458e-05,2]
[395091838,1764421444561,5820.64509656,8.458e-05,2]
[395091839,1764421467321,5820.64509656,8.458e-05,2]
[395091840,1764421490301,5820.64509656,8.458e-05,2]
[395091845,1764421514041,5820.64509656,8.458e-05,2]
[395091851,1764421536683,5820.64509656,8.458e-05,2]
[395091855,1764421558120,-1252.18664158,8.543e-05,2]
[395091856,1764421559544,4568.45845498,8.458e-05,2]
[395091859,1764421582287,4568.45845498,8.458e-05,2]
[395091864,1764421605934,4568.45845498,8.458e-05,2]
[395091873,1764421630349,4568.45845498,8.458e-05,2]
[395091878,1764421638152,-168.46269314,8.543e-05,2]
[395091881,1764421644106,-631.42598626,8.543e-05,2]
[395091883,1764421645068,-230.31347604,8.543e-05,2]
[395091884,1764421646098,-263.94215396,8.543e-05,2]
[395091885,1764421646130,-159.65002183,8.543e-05,2]
[395091901,1764421652855,3114.66412375,8.458e-05,2]
[395091943,1764421675202,3114.66412375,8.458e-05,2]
[395091944,1764421697523,3114.66412375,8.458e-05,2]
[395091945,1764421720216,3114.66412375,8.458e-05,2]
[395091946,1764421743188,3114.66412375,8.458e-05,2]
[395091947,1764421748102,-3114.66412375,8.543e-05,2]
[395091948,1764421748125,-184.22545391,8.623e-05,2]
[395091949,1764421748146,-1277.1122043,8.799e-05,2]
[395091950,1764421748167,-300.0,8.905e-05,2]
[395091951,1764421748190,-1200.0,8.906e-05,2]
[395091952,1764421748211,-1200.0,8.906e-05,2]
[395091953,1764421748232,-306.07903301,8.907e-05,2]
[395091954,1764421748252,-196.38110008,8.907e-05,2]
[395091955,1764421748274,-289.28459966,8.907e-05,2]
[395091956,1764421748294,-204.130571,8.907e-05,2]
[395091957,1764421748316,-500.0,9.794e-05,2]
[395091958,1764421748337,-500.0,9.794e-05,2]
[395091959,1764421748358,-500.0,9.794e-05,2]
[395091960,1764421748378,-500.0,9.794e-05,2]
[395091961,1764421748400,-500.0,9.794e-05,2]
[395091962,1764421748420,-500.0,9.794e-05,2]
[395091963,1764421748442,-500.0,9.794e-05,2]
[395091964,1764421748462,-437.85615127,9.794e-05,2]
[395091965,1764421748482,-500.0,9.794e-05,2]
[395091966,1764421748504,-500.0,9.794e-05,2]
[395091967,1764421748526,-175.7045465,9.794e-05,2]
[395091968,1764421748546,-300.0,9.795e-05,2]
[395091969,1764421748565,-300.0,9.795e-05,2]
[395091970,1764421748585,-300.0,9.795e-05,2]
[395091971,1764421748609,-42911.32339831,9.795e-05,2]
[395091972,1764421749092,-7088.67660169,9.795e-05,2]
[395091973,1764421749115,-420.0,9.796e-05,2]
[395091974,1764421749139,-1593.0,9.797e-05,2]
[395091975,1764421749159,-1680.0,9.797e-05,2]
[395091976,1764421749180,-124.15769611,9.996e-05,2]
[395091977,1764421752328,-594.94983647,9.996e-05,2]
[395091978,1764421752347,-396.7820932,0.0001,2]
[395091979,1764421752367,-289.28459966,0.00010035,2]
[395091980,1764421752384,-505.41414148,0.0001023,2]
[395091981,1764421752402,-2496.44645099,0.00010369,2]
[395091982,1764421752422,-163.445,0.00010498,2]
[395091983,1764421752441,-1182.86476542,0.000105,2]
[395091984,1764421752461,-187.78006525,0.00010514,2]
[395091985,1764421752480,-217.38603562,0.00010623,2]
[395091986,1764421752500,-153.44243371,0.00010656,2]
[395091996,1764421830792,-150.0,0.00015339,8]
[395092001,1764421832125,-2280.77508528,0.00010301,2]
[395092003,1764421832155,-741.03668742,0.00010301,2]
[395092005,1764421832164,-164.0,0.000105,2]
[395092007,1764421832173,-164.0,0.000105,2]
[395092008,1764421832182,-164.0,0.000105,2]
[395092011,1764421832193,-187.78006525,0.00010514,2]
[395092013,1764421832202,-1029.4223317,0.00010549,2]
[395092015,1764421832211,-236.0,0.00010549,2]
[395092017,1764421832220,-176.19322412,0.00010602,2]
[395092019,1764421832228,-1029.4223317,0.00010656,2]
[395092020,1764421832238,-172.7236389,0.00010775,2]
[395092021,1764421832247,-2351.0,0.00010776,2]
[395092023,1764421832256,-1182.86476541,0.00010812,2]
[395092025,1764421832265,-204.48102328,0.00010831,2]
[395092027,1764421832274,-190.77905059,0.00010831,2]
[395092029,1764421832283,-300.0,0.00010958,2]
[395092031,1764421832292,-276.0,0.00010958,2]
[395092033,1764421832301,-214.0,0.00010958,2]
[395092035,1764421832310,-862.3696642,0.00010959,2]
[395092037,1764421832320,-500.0,0.00010959,2]
[395092039,1764421832330,-500.0,0.00010959,2]
[395092041,1764421832339,-316.46733521,0.00010959,2]
[395092043,1764421832348,-500.0,0.00010959,2]
[395092045,1764421832358,-500.0,0.00010959,2]
[395092047,1764421832367,-500.0,0.00010959,2]
[395092049,1764421832377,-500.0,0.00010959,2]
[395092051,1764421832386,-184.7652422,0.00010959,2]
[395092053,1764421832395,-222.43150889,0.00010959,2]
[395092055,1764421832404,-1182.86476541,0.00010968,2]
[395092057,1764421832413,-164.0,0.00011,2]
[395092059,1764421832422,-164.0,0.00011,2]
[395092061,1764421832432,-194.72792766,0.00011062,2]
[395092063,1764421832441,-151.0,0.000111,2]
[395092064,1764421832450,-1182.86476541,0.00011124,2]
[395092067,1764421832460,-4460.80638118,0.00011135,2]
[395092069,1764421832469,-203.26058549,0.00011141,2]
[395092071,1764421832479,-289.28459966,0.00011164,2]
[395092072,1764421832488,-151.0,0.000112,2]
[395092095,1764421832690,-151.0,0.000112,2]
[395092097,1764421832700,-151.0,0.000112,2]
[395092099,1764421832711,-2733.922701,0.00011217,2]
[395092101,1764421832720,-1952.7443901,0.00011217,2]
[395092103,1764421832729,-403.248,0.00011224,2]
[395092105,1764421832739,-432.0,0.00011224,2]
[395092107,1764421832750,-414.0,0.00011224,2]
[395092109,1764421832760,-500.0,0.00011233,2]
[395092111,1764421832770,-124556.32140997,0.00011233,2]
[395092218,1764421838165,-164.0,0.00011,2]
[395092219,1764421838176,-164.0,0.00011,2]
[395092220,1764421838184,-288.52065901,0.00011232,2]
[395092221,1764421838196,-211.47934099,0.00011232,2]
[395092222,1764421838205,-288.52065901,0.00011232,2]
[395092223,1764421838269,-211.47934099,0.00011232,2]
[395092224,1764421838279,-621.52713465,0.00011232,2]
[395092226,1764421838288,-1153.36024534,0.00011233,2]
[395092227,1764421838313,-1513.73603526,0.00011233,2]
[395092228,1764421838325,-2012.70208524,0.00011233,2]
[395092358,1764421840263,-29.326906,0.00011199,2]
[395092360,1764421840274,-267.97359917,0.00011199,2]
[395092362,1764421840283,-560.27410843,0.00011233,2]
[395092366,1764421840309,-4398.60678582,0.00011233,2]
[395092368,1764421840323,-33974.66416536,0.00011233,2]
[395092370,1764421840332,-298.01360928,0.00011233,2]
[395092372,1764421840341,-151.0,0.00011233,2]
[395092374,1764421840351,-151.0,0.00011233,2]
[395092376,1764421840359,-151.0,0.00011233,2]
[395092378,1764421840369,-151.0,0.00011233,2]
[395092380,1764421840378,-151.0,0.00011233,2]
[395092382,1764421840387,-151.0,0.00011233,2]
[395092384,1764421840397,-500.0,0.00011233,2]
[395092386,1764421840406,-151.0,0.00011233,2]
[395092388,1764421840416,-500.0,0.00011233,2]
[395092390,1764421840425,-151.0,0.00011233,2]
[395092392,1764421840433,-500.0,0.00011233,2]
[395092394,1764421840443,-151.0,0.00011233,2]
[395092396,1764421840451,-151.0,0.00011233,2]
[395092398,1764421840460,-151.0,0.00011233,2]
[395092400,1764421840469,-368.06584191,0.00011326,2]
[395092402,1764421840478,-343.40229106,0.00011326,2]
[395092404,1764421840487,-151.0,0.0001137,2]
[395092406,1764421840496,-198.72488881,0.0001137,2]
[395092408,1764421840505,-198.98965846,0.0001137,2]
[395092410,1764421840514,-151.0,0.0001137,2]
[395092412,1764421840523,-151.0,0.0001137,2]
[395092414,1764421840533,-152.03900414,0.0001137,2]
[395092416,1764421840547,-500.0,0.0001137,2]
[395092418,1764421840556,-500.0,0.0001137,2]
[395092420,1764421840566,-151.0,0.0001137,2]
[395092422,1764421840575,-500.0,0.0001137,2]
[395092424,1764421840584,-198.81226654,0.0001137,2]
[395092426,1764421840593,-151.0,0.0001137,2]
[395092428,1764421840602,-151.0,0.0001137,2]
[395092430,1764421840611,-306.07903301,0.00011428,2]
[395092432,1764421840621,-500.0,0.00011507,2]
[395092434,1764421840630,-260.0334343,0.00011507,2]
[395092435,1764421840639,-151.0,0.00011507,2]
[395092436,1764421840647,-199.83311072,0.00011507,2]
[395092437,1764421840657,-500.0,0.00011507,2]
[395092438,1764421840670,-534.16279763,0.00011507,2]
[395092439,1764421840680,-261.61576856,0.00011507,2]
[395092440,1764421840689,-308.94157316,0.00011507,2]
[395092441,1764421840698,-289.56722547,0.00011507,2]
[395092442,1764421840709,-150.0,0.00011593,2]
[395092443,1764421840719,-150.375,0.00011593,2]
[395092444,1764421840728,-150.429,0.00011593,2]
[395092445,1764421840737,-150.618,0.00011593,2]
[395092446,1764421840747,-150.0,0.00011593,2]
[395092447,1764421840757,-674.2573448,0.00011609,2]
[395092448,1764421840767,-201.93286099,0.0001161,2]
[395092449,1764421840776,-245.0,0.00011644,2]
[395092450,1764421840784,-292.59428423,0.00011644,2]
[395092451,1764421840794,-759.08996786,0.00011716,2]
[395092452,1764421840803,-149537.72051015,0.00011735,2]
[395092453,1764421840812,-192.925269,0.00011735,2]
[395092454,1764421840821,-192.925269,0.00011735,2]
[395092455,1764421840830,-192.925269,0.00011735,2]
[395092456,1764421840839,-192.925273,0.00011735,2]
[395092457,1764421840848,-242.306676,0.00011735,2]
[395092458,1764421840857,-242.306676,0.00011735,2]
[395092459,1764421840866,-242.306676,0.00011735,2]
[395092460,1764421840875,-242.306676,0.00011735,2]
[395092461,1764421840884,-242.306676,0.00011735,2]
[395092462,1764421840892,-242.306676,0.00011735,2]
[395092463,1764421840902,-242.306676,0.00011735,2]
[395092464,1764421840911,-242.306676,0.00011735,2]
[395092465,1764421840920,-242.306676,0.00011735,2]
[395092466,1764421840928,-242.306676,0.00011735,2]
[395092467,1764421840937,-242.306676,0.00011735,2]
[395092468,1764421840946,-242.306676,0.00011735,2]
[395092469,1764421840955,-242.306676,0.00011735,2]
[395092470,1764421840965,-242.306676,0.00011735,2]
[395092471,1764421840974,-242.306676,0.00011735,2]
[395092472,1764421840982,-242.306676,0.00011735,2]
[395092473,1764421840992,-242.306676,0.00011735,2]
[395092474,1764421841000,-242.306676,0.00011735,2]
[395092475,1764421841010,-242.306676,0.00011735,2]
[395092476,1764421841019,-242.306671,0.00011735,2]
[395092477,1764421841028,-423.480408,0.00011735,2]
[395092478,1764421841038,-423.480408,0.00011735,2]
[395092479,1764421841047,-423.480408,0.00011735,2]
[395092480,1764421841056,-423.480408,0.00011735,2]
[395092481,1764421841228,-423.480408,0.00011735,2]
[395092482,1764421841237,-163.693306,0.00011735,2]
[395092483,1764421841246,-423.480408,0.00011735,2]
[395092484,1764421841255,-163.693306,0.00011735,2]
[395092485,1764421841264,-423.480408,0.00011735,2]
[395092486,1764421841273,-163.693306,0.00011735,2]
[395092487,1764421841282,-423.480408,0.00011735,2]
[395092488,1764421841291,-163.693306,0.00011735,2]
[395092489,1764421841300,-423.480408,0.00011735,2]
[395092490,1764421841309,-163.693306,0.00011735,2]
[395092491,1764421841318,-423.480408,0.00011735,2]
[395092492,1764421841326,-423.480408,0.00011735,2]
[395092493,1764421841335,-163.693306,0.00011735,2]
[395092494,1764421841344,-423.480408,0.00011735,2]
[395092495,1764421841353,-163.693306,0.00011735,2]
[395092496,1764421841362,-423.480408,0.00011735,2]
[395092497,1764421841371,-163.693306,0.00011735,2]
[395092498,1764421841380,-163.693306,0.00011735,2]
[395092499,1764421841392,-423.480408,0.00011735,2]
[395092500,1764421841401,-163.693306,0.00011735,2]
[395092501,1764421841410,-423.480408,0.00011735,2]
[395092502,1764421841419,-163.693306,0.00011735,2]
[395092503,1764421841429,-423.480408,0.00011735,2]
[395092504,1764421841438,-163.693306,0.00011735,2]
[395092505,1764421841447,-423.480408,0.00011735,2]
[395092506,1764421841457,-163.693306,0.00011735,2]
[395092507,1764421841466,-423.480408,0.00011735,2]
[395092508,1764421841476,-163.693306,0.00011735,2]
[395092509,1764421841485,-423.480408,0.00011735,2]
[395092510,1764421841494,-163.693306,0.00011735,2]
[395092511,1764421841503,-423.4804,0.00011735,2]
[395092512,1764421841512,-163.693306,0.00011735,2]
[395092513,1764421841521,-163.693306,0.00011735,2]
[395092514,1764421841530,-163.693306,0.00011735,2]
[395092515,1764421841540,-163.693306,0.00011735,2]
[395092516,1764421841549,-163.6933,0.00011735,2]
[395092517,1764421841558,-219.188113,0.00011735,2]
[395092518,1764421841567,-219.188113,0.00011735,2]
[395092519,1764421841576,-219.188113,0.00011735,2]
[395092520,1764421841585,-219.188113,0.00011735,2]
[395092521,1764421841595,-219.188113,0.00011735,2]
[395092522,1764421841603,-219.188113,0.00011735,2]
[395092523,1764421841613,-219.188113,0.00011735,2]
[395092524,1764421841622,-219.188113,0.00011735,2]
[395092525,1764421841630,-219.188113,0.00011735,2]
[395092526,1764421841639,-151.0,0.00011735,2]
[395092527,1764421841648,-219.188113,0.00011735,2]
[395092528,1764421841657,-151.0,0.00011735,2]
[395092529,1764421841669,-219.188113,0.00011735,2]
[395092530,1764421841678,-151.0,0.00011735,2]
[395092531,1764421841687,-151.0,0.00011735,2]
[395092532,1764421841696,-219.188113,0.00011735,2]
[395092533,1764421841707,-151.0,0.00011735,2]
[395092534,1764421841716,-219.188113,0.00011735,2]
[395092535,1764421841724,-151.0,0.00011735,2]
[395092536,1764421841734,-219.188113,0.00011735,2]
[395092537,1764421841744,-151.0,0.00011735,2]
[395092538,1764421841757,-219.188113,0.00011735,2]
[395092539,1764421841769,-151.0,0.00011735,2]
[395092540,1764421841778,-219.188113,0.00011735,2]
[395092541,1764421841788,-151.0,0.00011735,2]
[395092542,1764421841797,-219.188113,0.00011735,2]
[395092543,1764421841806,-151.0,0.00011735,2]
[395092544,1764421841815,-219.188113,0.00011735,2]
[395092545,1764421841824,-151.0,0.00011735,2]
[395092546,1764421841833,-219.188113,0.00011735,2]
[395092547,1764421841842,-151.0,0.00011735,2]
[395092548,1764421841851,-151.0,0.00011735,2]
[395092549,1764421841860,-219.188113,0.00011735,2]
[395092550,1764421841869,-151.0,0.00011735,2]
[395092551,1764421841878,-151.0,0.00011735,2]
[395092552,1764421841887,-151.0,0.00011735,2]
[395092553,1764421841896,-151.0,0.00011735,2]
[395092554,1764421841905,-159.035924,0.00011735,2]
[395092555,1764421841915,-151.0,0.00011735,2]
[395092556,1764421841924,-151.0,0.00011735,2]
[395092557,1764421841933,-151.0,0.00011735,2]
[395092558,1764421841942,-276.420684,0.00011735,2]
[395092559,1764421841951,-151.0,0.00011735,2]
[395092560,1764421841960,-226.981526,0.00011735,2]
[395092561,1764421841970,-219.505694,0.00011735,2]
[395092562,1764421841979,-219.505694,0.00011735,2]
[395092563,1764421841988,-151.0,0.00011735,2]
[395092564,1764421841997,-151.0,0.00011735,2]
[395092565,1764421842006,-219.505694,0.00011735,2]
[395092566,1764421842015,-151.0,0.00011735,2]
[395092567,1764421842024,-219.505694,0.00011735,2]
[395092568,1764421842034,-151.0,0.00011735,2]
[395092569,1764421842043,-219.505694,0.00011735,2]
[395092570,1764421842053,-219.505694,0.00011735,2]
[395092571,1764421842062,-151.0,0.00011735,2]
[395092572,1764421842072,-219.505694,0.00011735,2]
[395092573,1764421842081,-151.0,0.00011735,2]
[395092574,1764421842090,-151.0,0.00011735,2]
[395092575,1764421842099,-219.505694,0.00011735,2]
[395092576,1764421842108,-151.0,0.00011735,2]
[395092577,1764421842118,-219.505694,0.00011735,2]
[395092578,1764421842128,-151.0,0.00011735,2]
[395092580,1764421842137,-219.505694,0.00011735,2]
[395092581,1764421842145,-219.505694,0.00011735,2]
[395092582,1764421842154,-151.0,0.00011735,2]
[395092583,1764421842163,-151.0,0.00011735,2]
[395092584,1764421842171,-219.505694,0.00011735,2]
[395092585,1764421842180,-151.0,0.00011735,2]
[395092586,1764421842189,-219.505694,0.00011735,2]
[395092587,1764421842197,-219.505694,0.00011735,2]
[395092588,1764421842206,-281.078996,0.00011735,2]
[395092589,1764421842215,-219.505694,0.00011735,2]
[395092590,1764421842225,-219.505694,0.00011735,2]
[395092591,1764421842234,-219.505694,0.00011735,2]
[395092592,1764421842242,-219.505694,0.00011735,2]
[395092593,1764421842251,-219.505694,0.00011735,2]
[395092594,1764421842260,-219.505699,0.00011735,2]
[395092595,1764421842270,-151.0,0.00011735,2]
[395092596,1764421842279,-151.0,0.00011735,2]
[395092597,1764421842289,-151.0,0.00011735,2]
[395092598,1764421842298,-151.0,0.00011735,2]
[395092599,1764421842307,-151.0,0.00011735,2]
[395092600,1764421842316,-151.0,0.00011735,2]
[395092601,1764421842326,-151.0,0.00011735,2]
[395092602,1764421842335,-151.0,0.00011735,2]
[395092603,1764421842344,-151.0,0.00011735,2]
[395092604,1764421842353,-151.0,0.00011735,2]
[395092605,1764421842363,-190.962585,0.00011735,2]
[395092606,1764421842372,-151.0,0.00011735,2]
[395092607,1764421842381,-151.0,0.00011735,2]
[395092608,1764421842390,-151.0,0.00011735,2]
[395092609,1764421842401,-151.0,0.00011735,2]
[395092610,1764421842410,-151.0,0.00011735,2]
[395092611,1764421842419,-151.0,0.00011735,2]
[395092612,1764421842429,-151.0,0.00011735,2]
[395092613,1764421842438,-151.0,0.00011735,2]
[395092614,1764421842447,-151.0,0.00011735,2]
[395092616,1764421842456,-151.0,0.00011735,2]
[395092617,1764421842466,-151.0,0.00011735,2]
[395092618,1764421842475,-151.0,0.00011735,2]
[395092619,1764421842485,-151.0,0.00011735,2]
[395092620,1764421842494,-179.42113662,0.00011735,2]
[395092621,1764421842503,-151.0,0.00011735,2]
[395092622,1764421842513,-151.0,0.00011735,2]
[395092623,1764421842523,-185.610818,0.00011735,2]
[395092625,1764421842532,-151.0,0.00011735,2]
[395092627,1764421842541,-151.0,0.00011735,2]
[395092629,1764421842550,-151.0,0.00011735,2]
[395092631,1764421842560,-151.0,0.00011735,2]
[395092635,1764421842569,-158.986881,0.00011735,2]
[395092638,1764421842579,-290.304001,0.00011735,2]
[395092640,1764421842587,-290.304001,0.00011735,2]
[395092642,1764421842597,-290.304001,0.00011735,2]
[395092644,1764421842606,-290.304001,0.00011735,2]
[395092646,1764421842615,-290.304001,0.00011735,2]
[395092648,1764421842624,-290.304001,0.00011735,2]
[395092650,1764421842634,-290.304001,0.00011735,2]
[395092652,1764421842643,-151.0,0.00011735,2]
[395092654,1764421842652,-290.304001,0.00011735,2]
[395092657,1764421842662,-151.0,0.00011735,2]
[395092659,1764421842677,-290.304001,0.00011735,2]
[395092660,1764421842686,-151.0,0.00011735,2]
[395092663,1764421842696,-290.304001,0.00011735,2]
[395092664,1764421842706,-151.0,0.00011735,2]
[395092667,1764421842716,-290.304001,0.00011735,2]
[395092669,1764421842726,-151.0,0.00011735,2]
[395092671,1764421842736,-290.304001,0.00011735,2]
[395092673,1764421842747,-151.0,0.00011735,2]
[395092675,1764421842756,-151.0,0.00011735,2]
[395092677,1764421842766,-290.304001,0.00011735,2]
[395092679,1764421842778,-151.0,0.00011735,2]
[395092681,1764421842787,-290.304001,0.00011735,2]
[395092683,1764421842796,-151.0,0.00011735,2]
[395092685,1764421842806,-290.304001,0.00011735,2]
[395092687,1764421842815,-151.0,0.00011735,2]
[395092689,1764421842825,-290.304001,0.00011735,2]
[395092691,1764421842835,-269.616325,0.00011735,2]
[395092693,1764421842844,-290.304001,0.00011735,2]
[395092695,1764421842854,-290.304001,0.00011735,2]
[395092697,1764421842865,-290.304001,0.00011735,2]
[395092699,1764421842874,-290.30401005,0.00011735,2]
[395092701,1764421842883,-151.0,0.00011735,2]
[395092703,1764421842892,-158.345648,0.00011735,2]
[395092704,1764421842901,-151.0,0.00011735,2]
[395092707,1764421842910,-151.0,0.00011735,2]
[395092709,1764421842921,-151.0,0.00011735,2]
[395092711,1764421842930,-151.0,0.00011735,2]
[395092712,1764421842938,-151.0,0.00011735,2]
[395092715,1764421842948,-151.0,0.00011735,2]
[395092717,1764421842957,-157.885254,0.00011735,2]
[395092719,1764421842967,-151.0,0.00011735,2]
[395092720,1764421842976,-151.0,0.00011735,2]
[395092722,1764421842985,-151.0,0.00011735,2]
[395092725,1764421842995,-151.0,0.00011735,2]
[395092727,1764421843004,-151.0,0.00011735,2]
[395092729,1764421843014,-151.0,0.00011735,2]
[395092731,1764421843025,-151.0,0.00011735,2]
[395092732,1764421843035,-151.0,0.00011735,2]
[395092734,1764421843044,-151.0,0.00011735,2]
[395092736,1764421843055,-151.0,0.00011735,2]
[395092737,1764421843066,-151.0,0.00011735,2]
[395092738,1764421843075,-151.0,0.00011735,2]
[395092739,1764421843087,-151.0,0.00011735,2]
[395092740,1764421843096,-283.107187,0.00011735,2]
[395092741,1764421843105,-151.0,0.00011735,2]